[Event "European Rapid Championship 2021"]
[Site "Katowice"]
[Date "2021.12.18"]
[Round "6.8"]
[White "Schneider, Ilja"]
[Black "Budrewicz, Krzysztof"]
[Result "1-0"]
[ECO "B24"]
[WhiteElo "2490"]
[BlackElo "2281"]
[Annotator "ChessBase"]
[PlyCount "127"]
[EventDate "2021.12.18"]
[EventType "swiss"]
[EventCountry "POL"]
[SourceTitle "playchess.com"]
[Source "ChessBase"]
[SourceQuality "1"]
[TimeControl "900+10"]

1. e4 {[%emt 0:00:04]} c5 {[%emt 0:00:04]} 2. Nc3 {[%emt 0:00:05]} Nc6 {
[%emt 0:00:08]} 3. Bb5 {[%emt 0:00:10]} d6 {[%emt 0:00:56]} 4. Bxc6+ {[%emt 0:
02:02]} bxc6 {[%emt 0:00:02]} 5. f4 {[%emt 0:00:44]} g6 {[%emt 0:00:48]} 6. b3
{[%emt 0:00:42]} Bg7 {[%emt 0:00:05]} 7. Bb2 {[%emt 0:00:01]} Nf6 {[%emt 0:00:
11]} 8. d3 {[%emt 0:00:23]} O-O {[%emt 0:00:12]} 9. Nf3 {[%emt 0:00:15]} Nh5 {
[%emt 0:00:21]} 10. Qd2 {[%emt 0:00:40]} Qa5 {[%emt 0:00:09]} 11. O-O {[%emt 0:
00:42]} Bh6 {[%emt 0:02:51]} 12. g3 {[%emt 0:02:44]} Bh3 {[%emt 0:00:03]} 13.
Rf2 {[%emt 0:00:08]} e5 {[%emt 0:00:04]} 14. Ne2 {[%emt 0:03:23]} Qd8 {[%emt 0:
00:20]} 15. Qc3 {[%emt 0:01:04]} f6 {[%emt 0:00:17]} 16. Bc1 {[%emt 0:00:16]}
Bg7 {[%emt 0:00:19]} 17. Be3 {[%emt 0:01:07]} Qd7 {[%emt 0:00:27]} 18. fxe5 {
[%emt 0:00:23]} fxe5 {[%emt 0:00:11]} 19. Ng5 {[%emt 0:00:01]} Rxf2 {[%emt 0:
00:49]} 20. Bxf2 {[%emt 0:00:00]} Bh6 {[%emt 0:00:11]} 21. Nxh3 {[%emt 0:00:12]
} Qxh3 {[%emt 0:00:02]} 22. Kh1 {[%emt 0:01:32]} Rf8 {[%emt 0:00:16]} 23. Ng1 {
[%emt 0:00:01]} Qd7 {[%emt 0:00:35]} 24. Qe1 {[%emt 0:00:05]} Nf6 {[%emt 0:00:
07]} 25. h3 {[%emt 0:00:54]} Nh5 {[%emt 0:00:32]} 26. Qe2 {[%emt 0:00:21]} Qe7
{[%emt 0:00:32]} 27. Rf1 {[%emt 0:00:16]} Qg5 {[%emt 0:00:11]} 28. Kh2 {
[%emt 0:00:06]} Qf6 {[%emt 0:00:31]} 29. Kg2 {[%emt 0:00:06]} Qg5 {[%emt 0:01:
10]} 30. Kh2 {[%emt 0:00:01]} Qd8 {[%emt 0:00:58]} 31. Be1 {[%emt 0:00:22]} Nf6
{[%emt 0:00:15]} 32. Kg2 {[%emt 0:00:07]} c4 {[%emt 0:00:32]} 33. bxc4 {
[%emt 0:00:05]} Qb6 {[%emt 0:00:03]} 34. Nf3 {[%emt 0:00:15]} Qb2 {[%emt 0:00:
07]} 35. a4 {[%emt 0:00:12]} c5 {[%emt 0:00:15]} 36. Nh2 {[%emt 0:01:04]} Bg7 {
[%emt 0:00:49]} 37. Rf2 {[%emt 0:00:18]} Qa2 {[%emt 0:00:14]} 38. a5 {[%emt 0:
00:01]} a6 {[%emt 0:00:05]} 39. Ng4 {[%emt 0:00:06]} h5 {[%emt 0:01:05]} 40.
Ne3 {[%emt 0:00:00]} Bh6 {[%emt 0:00:19]} 41. Nd5 {[%emt 0:00:03]} Nxd5 {
[%emt 0:00:16]} 42. exd5 {[%emt 0:00:03]} Rxf2+ {[%emt 0:01:54]} 43. Qxf2 {
[%emt 0:00:01]} Bg7 {[%emt 0:01:11]} 44. Qe2 {[%emt 0:00:12]} Bf6 {[%emt 0:00:
09]} 45. h4 {[%emt 0:00:07]} Bd8 {[%emt 0:00:04]} 46. Qf2 {[%emt 0:00:12]} Kg7
{[%emt 0:00:09]} 47. Bd2 {[%emt 0:00:05]} Qa4 {[%emt 0:00:30]} 48. Qe3 {
[%emt 0:00:58]} Bf6 {[%emt 0:00:12]} 49. Qh6+ {[%emt 0:00:02]} Kf7 {[%emt 0:00:
01]} 50. Qh7+ {[%emt 0:00:01]} Ke8 {[%emt 0:01:20]} 51. Qg8+ {[%emt 0:00:05]}
Kd7 {[%emt 0:00:10]} 52. Qe6+ {[%emt 0:00:01]} Kc7 {[%emt 0:00:00]} 53. Qf7+ {
[%emt 0:00:10]} Kc8 {[%emt 0:00:05]} 54. Qxf6 {[%emt 0:00:06]} Qxc2 {[%emt 0:
00:03]} 55. Qf8+ {[%emt 0:00:06]} Kb7 {[%emt 0:00:02]} 56. Qe7+ {[%emt 0:00:01]
} Kc8 {[%emt 0:00:02]} 57. Qe8+ {[%emt 0:00:01]} Kc7 {[%emt 0:00:05]} 58. Qc6+
{[%emt 0:00:01]} Kb8 {[%emt 0:00:01]} 59. Qb6+ {[%emt 0:00:00]} Ka8 {[%emt 0:
00:14]} 60. Qxa6+ Kb8 {[%emt 0:00:01]} 61. Qxd6+ {[%emt 0:00:00]} Ka8 {[%emt 0:
00:02]} 62. Qd8+ {[%emt 0:00:00]} Kb7 {[%emt 0:00:06]} 63. Qb6+ {[%emt 0:00:00]
} Ka8 {[%emt 0:00:18]} 64. a6 {[%emt 0:00:00]} 1-0

[Event "European Rapid Championship 2021"]
[Site "Katowice"]
[Date "2021.12.18"]
[Round "6.8"]
[White "Reimanis, Ritvars"]
[Black "Dzierzak, Radoslaw"]
[Result "0-1"]
[ECO "E11"]
[WhiteElo "2397"]
[BlackElo "2075"]
[Annotator "NA"]
[PlyCount "88"]
[EventDate "2021.12.18"]
[EventType "swiss"]
[EventCountry "POL"]
[SourceTitle "playchess.com"]
[Source "ChessBase"]
[SourceQuality "1"]
[TimeControl "900+10"]

1. Nf3 {[%emt 0:00:10]} Nf6 {[%emt 0:00:02]} 2. d4 {[%emt 0:00:00]} e6 {
[%emt 0:00:02]} 3. c4 {[%emt 0:00:02]} Bb4+ {[%emt 0:00:01]} 4. Bd2 {[%emt 0:
00:02]} a5 {[%emt 0:00:01]} 5. g3 {[%emt 0:00:02]} d6 {[%emt 0:00:02]} 6. Bg2 {
[%emt 0:00:01]} Nbd7 {[%emt 0:00:01]} 7. O-O {[%emt 0:00:06]} e5 {[%emt 0:00:
01]} 8. e4 {[%emt 0:01:26]} O-O {[%emt 0:00:35]} 9. Bg5 {[%emt 0:01:00]} exd4 {
[%emt 0:00:10]} 10. Nxd4 {[%emt 0:00:17]} h6 {[%emt 0:00:03]} 11. Be3 {[%emt 0:
00:20]} Ne5 {[%emt 0:01:08]} 12. Qc2 {[%emt 0:01:13]} Nfg4 {[%emt 0:01:43]} 13.
Bf4 {[%emt 0:02:23]} Bc5 {[%emt 0:00:24]} 14. Qc3 {[%emt 0:00:57]} c6 {[%emt 0:
01:56]} 15. Na3 {[%emt 0:03:05]} Qb6 {[%emt 0:02:57]} 16. Rad1 {[%emt 0:00:22]}
Bd7 {[%emt 0:00:59]} 17. h3 {[%emt 0:01:23]} Nf6 {[%emt 0:00:02]} 18. Nac2 {
[%emt 0:00:41]} Ng6 {[%emt 0:00:36]} 19. Bc1 {[%emt 0:00:56]} Rfe8 {[%emt 0:00:
18]} 20. Rde1 {[%emt 0:00:35]} Re7 {[%emt 0:01:07]} 21. Nb3 {[%emt 0:01:49]}
Rae8 {[%emt 0:02:21]} 22. Nxc5 {[%emt 0:00:08]} Qxc5 {[%emt 0:00:02]} 23. Bxh6
{[%emt 0:00:09]} Qh5 {[%emt 0:00:12]} 24. Bf4 {[%emt 0:00:41]} Nxf4 {[%emt 0:
00:19]} 25. gxf4 {[%emt 0:00:02]} Nxe4 {[%emt 0:00:10]} 26. Qa3 {[%emt 0:00:12]
} Qc5 {[%emt 0:01:29]} 27. Qxc5 {[%emt 0:00:44]} Nxc5 {[%emt 0:00:03]} 28. Rxe7
{[%emt 0:00:16]} Rxe7 {[%emt 0:00:01]} 29. Nd4 {[%emt 0:00:00]} Nd3 {[%emt 0:
00:25]} 30. f5 {[%emt 0:00:09]} c5 {[%emt 0:01:11]} 31. f6 {[%emt 0:00:01]}
gxf6 {[%emt 0:00:01]} 32. Nb3 {[%emt 0:00:33]} Nxb2 {[%emt 0:01:05]} 33. Nxa5 {
[%emt 0:00:06]} b6 {[%emt 0:00:01]} 34. Rb1 {[%emt 0:00:04]} Re2 {[%emt 0:00:
01]} 35. Bf1 {[%emt 0:00:08]} Rc2 {[%emt 0:00:08]} 36. Nb7 {[%emt 0:00:06]}
Nxc4 {[%emt 0:00:35]} 37. Bxc4 {[%emt 0:00:16]} Rxc4 {[%emt 0:00:02]} 38. Rxb6
{[%emt 0:00:18]} Rb4 {[%emt 0:00:36]} 39. Rxb4 {[%emt 0:00:37]} cxb4 {[%emt 0:
00:01]} 40. Nxd6 {[%emt 0:00:05]} Be6 {[%emt 0:00:03]} 41. Kg2 {[%emt 0:00:19]}
Bxa2 {[%emt 0:00:02]} 42. Kg3 {[%emt 0:00:05]} Be6 {[%emt 0:00:26]} 43. Ne4 {
[%emt 0:00:18]} b3 {[%emt 0:00:14]} 44. Nc3 {[%emt 0:00:07]} b2 {[%emt 0:00:07]
} 0-1

[Event "European Rapid Championship 2021"]
[Site "Katowice"]
[Date "2021.12.18"]
[Round "6.9"]
[White "Godzwon, Iwo"]
[Black "Gumularz, Szymon"]
[Result "1/2-1/2"]
[ECO "B11"]
[WhiteElo "2352"]
[BlackElo "2452"]
[Annotator "ChessBase"]
[PlyCount "90"]
[EventDate "2021.12.18"]
[EventType "swiss"]
[EventCountry "POL"]
[SourceTitle "playchess.com"]
[Source "ChessBase"]
[SourceQuality "1"]
[TimeControl "900+10"]

1. e4 {[%emt 0:00:01]} c6 {[%emt 0:00:02]} 2. Nf3 {[%emt 0:00:14]} d5 {[%emt 0:
00:02]} 3. Nc3 {[%emt 0:00:00]} Bg4 {[%emt 0:00:05]} 4. h3 {[%emt 0:00:02]}
Bxf3 {[%emt 0:00:03]} 5. Qxf3 {[%emt 0:00:02]} e6 {[%emt 0:00:01]} 6. Be2 {
[%emt 0:01:04]} Bc5 {[%emt 0:00:56]} 7. Qg3 {[%emt 0:01:08]} Bd4 {[%emt 0:00:
26]} 8. O-O {[%emt 0:00:20]} Ne7 {[%emt 0:00:06]} 9. d3 {[%emt 0:00:59]} Nd7 {
[%emt 0:00:35]} 10. Nd1 {[%emt 0:00:24]} O-O {[%emt 0:00:09]} 11. c3 {[%emt 0:
01:04]} Bb6 {[%emt 0:00:02]} 12. Bg5 {[%emt 0:00:49]} Kh8 {[%emt 0:00:34]} 13.
exd5 {[%emt 0:00:37]} cxd5 {[%emt 0:00:08]} 14. d4 {[%emt 0:00:05]} Nf5 {
[%emt 0:00:46]} 15. Qg4 Nf6 16. Qf3 {[%emt 0:00:41]} h6 {[%emt 0:03:48]} 17.
Bxf6 {[%emt 0:01:06]} Qxf6 {[%emt 0:00:01]} 18. Ne3 {[%emt 0:00:01]} g6 {
[%emt 0:01:03]} 19. Bd3 {[%emt 0:00:59]} Qg5 {[%emt 0:00:29]} 20. Rae1 {
[%emt 0:01:08]} Bc7 {[%emt 0:00:18]} 21. Qg4 {[%emt 0:01:47]} Qf6 {[%emt 0:00:
26]} 22. Qf3 {[%emt 0:00:17]} Rad8 {[%emt 0:00:45]} 23. g3 {[%emt 0:01:21]} Qg5
{[%emt 0:00:16]} 24. Qg4 {[%emt 0:00:21]} Kg7 {[%emt 0:01:40]} 25. Kg2 {
[%emt 0:00:42]} Nd6 {[%emt 0:00:37]} 26. h4 {[%emt 0:01:01]} Qxg4 {[%emt 0:01:
59]} 27. Nxg4 {[%emt 0:00:01]} h5 {[%emt 0:00:08]} 28. Ne5 {[%emt 0:00:01]} Nc8
{[%emt 0:00:13]} 29. Re2 {[%emt 0:00:24]} Ne7 {[%emt 0:00:04]} 30. Rfe1 {
[%emt 0:00:12]} a6 {[%emt 0:00:04]} 31. a4 {[%emt 0:00:14]} Bd6 {[%emt 0:00:43]
} 32. Nf3 {[%emt 0:00:59]} Rc8 {[%emt 0:00:07]} 33. Rc2 {[%emt 0:00:38]} Rc6 {
[%emt 0:00:09]} 34. Rec1 {[%emt 0:00:24]} Rfc8 {[%emt 0:00:04]} 35. c4 dxc4 {
[%emt 0:00:11]} 36. Rxc4 {[%emt 0:00:18]} Rxc4 {[%emt 0:01:50]} 37. Rxc4 {
[%emt 0:00:01]} Rxc4 {[%emt 0:00:23]} 38. Bxc4 {[%emt 0:00:01]} Kf6 {[%emt 0:
00:01]} 39. Kf1 {[%emt 0:00:16]} Bb8 {[%emt 0:00:25]} 40. Ke2 {[%emt 0:00:07]}
Nf5 {[%emt 0:00:25]} 41. Bd3 {[%emt 0:00:47]} Ba7 {[%emt 0:00:07]} 42. Be4 {
[%emt 0:00:01]} Nd6 {[%emt 0:00:10]} 43. Bd3 {[%emt 0:00:34]} a5 {[%emt 0:00:
05]} 44. b3 {[%emt 0:00:08]} Ke7 {[%emt 0:01:09]} 45. Bc4 {[%emt 0:00:31]} Ne4
{[%emt 0:00:37]} 1/2-1/2

[Event "European Rapid Championship 2021"]
[Site "Katowice"]
[Date "2021.12.18"]
[Round "6.9"]
[White "Mica, Marek"]
[Black "Nasuta, Grzegorz"]
[Result "0-1"]
[ECO "A28"]
[WhiteElo "2060"]
[BlackElo "2345"]
[Annotator "NA"]
[PlyCount "102"]
[EventDate "2021.12.18"]
[EventType "swiss"]
[EventCountry "POL"]
[SourceTitle "playchess.com"]
[Source "ChessBase"]
[SourceQuality "1"]
[TimeControl "900+10"]

1. c4 {[%emt 0:00:02]} e5 {[%emt 0:00:07]} 2. Nc3 {[%emt 0:00:02]} Nf6 {
[%emt 0:00:01]} 3. Nf3 {[%emt 0:00:01]} Nc6 {[%emt 0:00:01]} 4. e3 {[%emt 0:00:
07]} Be7 {[%emt 0:01:14]} 5. d4 {[%emt 0:00:28]} exd4 {[%emt 0:00:02]} 6. Nxd4
{[%emt 0:00:04]} Bb4 {[%emt 0:00:57]} 7. Nde2 {[%emt 0:01:07]} O-O {[%emt 0:00:
54]} 8. a3 {[%emt 0:00:09]} Be7 {[%emt 0:00:13]} 9. Nf4 {[%emt 0:00:18]} d6 {
[%emt 0:00:31]} 10. Be2 {[%emt 0:00:26]} Ne5 {[%emt 0:00:03]} 11. b3 {[%emt 0:
00:55]} c6 {[%emt 0:00:06]} 12. Bb2 {[%emt 0:00:36]} Bf5 {[%emt 0:00:47]} 13.
O-O {[%emt 0:00:45]} h6 {[%emt 0:00:31]} 14. Nd3 {[%emt 0:00:40]} Qc7 {[%emt 0:
00:09]} 15. h3 {[%emt 0:00:18]} Rad8 {[%emt 0:00:09]} 16. f4 {[%emt 0:01:46]}
Ned7 {[%emt 0:04:15]} 17. Nf2 {[%emt 0:02:24]} Qb6 {[%emt 0:01:39]} 18. Bf3 {
[%emt 0:00:38]} Nc5 {[%emt 0:01:00]} 19. b4 {[%emt 0:00:29]} Nd3 {[%emt 0:00:
01]} 20. Nxd3 {[%emt 0:00:22]} Qxe3+ {[%emt 0:00:02]} 21. Nf2 {[%emt 0:00:03]}
Qxf4 {[%emt 0:00:02]} 22. Nce4 {[%emt 0:02:08]} Bxe4 {[%emt 0:02:18]} 23. Nxe4
{[%emt 0:04:52]} Nxe4 {[%emt 0:00:01]} 24. Qd3 {[%emt 0:00:16]} Ng3 {[%emt 0:
01:45]} 25. Bxc6 {[%emt 0:00:09]} Nxf1 {[%emt 0:00:03]} 26. Rxf1 {[%emt 0:00:
04]} Qg5 {[%emt 0:01:56]} 27. Bxb7 {[%emt 0:00:05]} f5 {[%emt 0:00:19]} 28.
Bd5+ {[%emt 0:00:05]} Kh8 {[%emt 0:00:02]} 29. Bc1 {[%emt 0:00:20]} Qg6 {
[%emt 0:00:11]} 30. Be3 {[%emt 0:00:06]} a6 {[%emt 0:00:09]} 31. g4 {[%emt 0:
00:12]} Bg5 {[%emt 0:00:22]} 32. Bxg5 {[%emt 0:00:18]} Qxg5 {[%emt 0:00:01]}
33. Rxf5 {[%emt 0:00:02]} Rxf5 {[%emt 0:00:02]} 34. Qxf5 {[%emt 0:00:01]} Qe3+
{[%emt 0:00:12]} 35. Qf2 {[%emt 0:00:13]} Qxa3 {[%emt 0:00:14]} 36. g5 {
[%emt 0:00:26]} Qc1+ {[%emt 0:00:02]} 37. Kh2 {[%emt 0:00:02]} Qxg5 {[%emt 0:
00:01]} 38. Bc6 {[%emt 0:00:11]} Qe7 {[%emt 0:00:10]} 39. b5 {[%emt 0:00:09]}
axb5 {[%emt 0:00:02]} 40. cxb5 {[%emt 0:00:01]} Rf8 {[%emt 0:00:02]} 41. Qb2 {
[%emt 0:00:28]} Qe3 {[%emt 0:00:29]} 42. Bg2 {[%emt 0:00:06]} Rf2 {[%emt 0:00:
02]} 43. Qa1 {[%emt 0:00:07]} Qf3 {[%emt 0:00:43]} 44. Qg1 {[%emt 0:00:03]}
Qf4+ {[%emt 0:00:02]} 45. Kh1 {[%emt 0:00:02]} Rc2 {[%emt 0:00:02]} 46. b6 {
[%emt 0:00:28]} Rc1 {[%emt 0:00:02]} 47. b7 {[%emt 0:00:01]} Rxg1+ {[%emt 0:00:
03]} 48. Kxg1 {[%emt 0:00:01]} Qb4 {[%emt 0:00:02]} 49. Bd5 {[%emt 0:00:06]} g6
{[%emt 0:00:03]} 50. Kf2 {[%emt 0:00:04]} Kg7 {[%emt 0:00:02]} 51. Ke3 {
[%emt 0:00:02]} Kf6 {[%emt 0:00:02]} 0-1

[Event "European Rapid Championship 2021"]
[Site "Katowice"]
[Date "2021.12.18"]
[Round "6.10"]
[White "Spalir, Jernej"]
[Black "Castejon Caballero, Andres"]
[Result "1/2-1/2"]
[ECO "D38"]
[WhiteElo "2340"]
[BlackElo "2056"]
[Annotator "NA"]
[PlyCount "92"]
[EventDate "2021.12.18"]
[EventType "swiss"]
[EventCountry "POL"]
[SourceTitle "playchess.com"]
[Source "ChessBase"]
[SourceQuality "1"]
[TimeControl "900+10"]

1. d4 {[%emt 0:00:03]} Nf6 {[%emt 0:00:02]} 2. Nf3 {[%emt 0:00:02]} e6 {
[%emt 0:00:04]} 3. c4 {[%emt 0:00:02]} d5 {[%emt 0:00:02]} 4. Nc3 {[%emt 0:00:
01]} Bb4 {[%emt 0:00:01]} 5. Qa4+ {[%emt 0:00:03]} Nc6 {[%emt 0:00:02]} 6. e3 {
[%emt 0:00:02]} O-O {[%emt 0:00:48]} 7. Bd2 {[%emt 0:00:04]} Bxc3 {[%emt 0:01:
09]} 8. Bxc3 {[%emt 0:00:02]} Ne4 {[%emt 0:00:02]} 9. Qc2 {[%emt 0:00:03]} a5 {
[%emt 0:00:32]} 10. a3 {[%emt 0:00:43]} Bd7 {[%emt 0:04:17]} 11. Bd3 {[%emt 0:
00:03]} f5 {[%emt 0:00:01]} 12. O-O {[%emt 0:00:05]} g5 {[%emt 0:00:18]} 13.
Nd2 {[%emt 0:02:08]} Ne7 {[%emt 0:00:36]} 14. f3 {[%emt 0:00:08]} Nxc3 {
[%emt 0:00:47]} 15. bxc3 {[%emt 0:00:02]} Qe8 {[%emt 0:00:53]} 16. e4 {[%emt 0:
00:09]} Qh5 {[%emt 0:02:56]} 17. cxd5 {[%emt 0:01:29]} exd5 {[%emt 0:00:03]}
18. c4 {[%emt 0:00:03]} dxe4 {[%emt 0:00:54]} 19. fxe4 {[%emt 0:00:02]} f4 {
[%emt 0:00:01]} 20. e5 {[%emt 0:01:24]} Nf5 {[%emt 0:02:01]} 21. Bxf5 {[%emt 0:
00:07]} Bxf5 {[%emt 0:00:01]} 22. Qb3 {[%emt 0:00:17]} Rad8 {[%emt 0:00:08]}
23. d5 {[%emt 0:00:15]} b6 {[%emt 0:00:10]} 24. e6 {[%emt 0:00:11]} Bxe6 {
[%emt 0:00:36]} 25. Rae1 {[%emt 0:00:28]} Bf5 {[%emt 0:00:24]} 26. Nf3 {
[%emt 0:00:04]} Rde8 {[%emt 0:00:23]} 27. Nd4 {[%emt 0:00:13]} Rxe1 {[%emt 0:
00:20]} 28. Rxe1 {[%emt 0:00:01]} Re8 {[%emt 0:00:01]} 29. Qc3 {[%emt 0:00:26]}
Rxe1+ {[%emt 0:00:29]} 30. Qxe1 {[%emt 0:00:01]} Bd7 {[%emt 0:00:08]} 31. Ne6 {
[%emt 0:00:46]} Bxe6 {[%emt 0:01:06]} 32. dxe6 {[%emt 0:00:57]} Kf8 {[%emt 0:
00:09]} 33. Qd2 {[%emt 0:00:50]} Qe8 {[%emt 0:00:29]} 34. Qd5 {[%emt 0:00:01]}
Qe7 {[%emt 0:00:01]} 35. Qf5+ {[%emt 0:01:10]} Kg7 {[%emt 0:00:02]} 36. Qe5+ {
[%emt 0:00:03]} Kg6 {[%emt 0:00:07]} 37. Kf1 {[%emt 0:00:21]} Qd6 {[%emt 0:00:
41]} 38. Qe4+ {[%emt 0:00:01]} Kf6 {[%emt 0:00:01]} 39. Qxh7 {[%emt 0:00:08]}
Qd1+ {[%emt 0:00:15]} 40. Kf2 {[%emt 0:00:01]} Qd2+ {[%emt 0:00:01]} 41. Kf1 {
[%emt 0:00:02]} Qc1+ {[%emt 0:00:21]} 42. Kf2 {[%emt 0:00:04]} Qb2+ {[%emt 0:
00:06]} 43. Kf1 {[%emt 0:00:05]} Qa1+ {[%emt 0:00:02]} 44. Ke2 {[%emt 0:00:08]}
Qa2+ {[%emt 0:00:08]} 45. Ke1 {[%emt 0:00:11]} Qa1+ {[%emt 0:00:07]} 46. Ke2 {
[%emt 0:00:02]} Ke5 1/2-1/2

[Event "European Rapid Championship 2021"]
[Site "Katowice"]
[Date "2021.12.18"]
[Round "6.10"]
[White "Karpus, Michal"]
[Black "Dragnev, Valentin"]
[Result "1-0"]
[ECO "B01"]
[WhiteElo "2185"]
[BlackElo "2409"]
[Annotator "NA"]
[PlyCount "105"]
[EventDate "2021.12.18"]
[EventType "swiss"]
[EventCountry "POL"]
[SourceTitle "playchess.com"]
[Source "ChessBase"]
[SourceQuality "1"]
[TimeControl "900+10"]

1. e4 {[%emt 0:00:01]} d5 {[%emt 0:00:01]} 2. exd5 {[%emt 0:00:03]} Qxd5 {
[%emt 0:00:02]} 3. Nc3 {[%emt 0:00:03]} Qa5 {[%emt 0:00:01]} 4. d4 {[%emt 0:00:
04]} Nf6 {[%emt 0:00:02]} 5. Nf3 {[%emt 0:00:11]} Bf5 {[%emt 0:00:03]} 6. Bc4 {
[%emt 0:00:06]} Nbd7 {[%emt 0:00:10]} 7. Bd2 {[%emt 0:00:43]} c6 {[%emt 0:00:
02]} 8. Qe2 {[%emt 0:00:15]} Qc7 {[%emt 0:00:04]} 9. O-O-O {[%emt 0:00:19]} e6
{[%emt 0:00:03]} 10. Ne5 {[%emt 0:00:45]} Be7 {[%emt 0:00:10]} 11. Bf4 {
[%emt 0:02:42]} Bd6 {[%emt 0:05:25]} 12. Kb1 {[%emt 0:00:56]} O-O {[%emt 0:00:
35]} 13. f3 {[%emt 0:01:47]} Nd5 {[%emt 0:03:24]} 14. Bxd5 {[%emt 0:01:04]}
exd5 {[%emt 0:00:07]} 15. g4 {[%emt 0:00:08]} Be6 {[%emt 0:00:10]} 16. Nxd7 {
[%emt 0:01:06]} Bxd7 {[%emt 0:00:16]} 17. Bxd6 {[%emt 0:02:19]} Qxd6 {[%emt 0:
00:03]} 18. Rhe1 {[%emt 0:01:20]} Rae8 {[%emt 0:01:04]} 19. Qg2 {[%emt 0:00:30]
} Rxe1 {[%emt 0:03:10]} 20. Rxe1 {[%emt 0:00:02]} Qf4 {[%emt 0:00:01]} 21. Re7
{[%emt 0:00:53]} Bc8 {[%emt 0:00:27]} 22. Ne2 {[%emt 0:00:20]} Qd2 {[%emt 0:00:
03]} 23. Qf1 {[%emt 0:00:13]} f5 24. gxf5 {[%emt 0:00:19]} Qb4 {[%emt 0:01:37]}
25. f6 {[%emt 0:00:52]} Rxf6 {[%emt 0:00:11]} 26. Re8+ {[%emt 0:00:01]} Rf8 {
[%emt 0:00:01]} 27. Rxf8+ {[%emt 0:00:37]} Kxf8 {[%emt 0:00:09]} 28. Qc1 {
[%emt 0:00:17]} Qd6 {[%emt 0:00:18]} 29. Ng3 {[%emt 0:00:07]} Qf6 {[%emt 0:00:
43]} 30. Qe3 {[%emt 0:00:02]} Kf7 {[%emt 0:00:16]} 31. a4 {[%emt 0:00:48]} Bf5
{[%emt 0:00:09]} 32. Qb3 {[%emt 0:00:04]} Bc8 {[%emt 0:00:06]} 33. Qc3 {
[%emt 0:00:25]} Qe7 {[%emt 0:00:10]} 34. Qd2 {[%emt 0:00:14]} Qh4 {[%emt 0:00:
09]} 35. Qa5 {[%emt 0:00:13]} Qf4 {[%emt 0:00:52]} 36. Qd8 {[%emt 0:00:20]} Be6
{[%emt 0:00:16]} 37. Qa8 {[%emt 0:00:25]} Qxf3 {[%emt 0:00:27]} 38. Qxb7+ {
[%emt 0:00:01]} Kf6 {[%emt 0:00:08]} 39. Qxc6 {[%emt 0:00:23]} Qd1+ {[%emt 0:
00:01]} 40. Ka2 {[%emt 0:00:03]} Qxd4 {[%emt 0:00:01]} 41. Nh5+ {[%emt 0:00:12]
} Kf5 {[%emt 0:00:15]} 42. Ng3+ {[%emt 0:00:24]} Kf6 {[%emt 0:00:03]} 43. Nh5+
{[%emt 0:00:01]} Kf5 {[%emt 0:00:05]} 44. Ng3+ {[%emt 0:00:35]} Kf6 {[%emt 0:
00:09]} 45. Nh5+ {[%emt 0:00:02]} Ke7 {[%emt 0:00:26]} 46. Qc7+ {[%emt 0:00:13]
} Bd7 {[%emt 0:00:01]} 47. b3 {[%emt 0:00:03]} g6 {[%emt 0:00:09]} 48. Nf4 {
[%emt 0:00:04]} g5 {[%emt 0:00:20]} 49. Nd3 {[%emt 0:00:02]} Ke8 {[%emt 0:00:
40]} 50. Ne5 {[%emt 0:00:08]} Be6 {[%emt 0:00:12]} 51. Qb8+ {[%emt 0:00:03]}
Bc8 {[%emt 0:00:09]} 52. Qxc8+ {[%emt 0:00:02]} Ke7 {[%emt 0:00:00]} 53. Nc6+ {
[%emt 0:00:01]} 1-0

[Event "European Rapid Championship 2021"]
[Site "Katowice"]
[Date "2021.12.18"]
[Round "6.11"]
[White "Morkunas, Gustas"]
[Black "Papasimakopoulos, Alexandros"]
[Result "0-1"]
[ECO "C15"]
[WhiteElo "1907"]
[BlackElo "2274"]
[Annotator "NA"]
[PlyCount "116"]
[EventDate "2021.12.18"]
[EventType "swiss"]
[EventCountry "POL"]
[SourceTitle "playchess.com"]
[Source "ChessBase"]
[SourceQuality "1"]
[TimeControl "900+10"]

1. e4 {[%emt 0:00:03]} e6 {[%emt 0:00:01]} 2. d4 {[%emt 0:00:01]} d5 {[%emt 0:
00:01]} 3. Nc3 {[%emt 0:00:02]} Bb4 {[%emt 0:00:01]} 4. Nge2 {[%emt 0:00:01]}
Nc6 {[%emt 0:00:02]} 5. e5 {[%emt 0:01:22]} Nge7 {[%emt 0:00:02]} 6. a3 {
[%emt 0:00:14]} Ba5 {[%emt 0:00:01]} 7. b4 {[%emt 0:00:04]} Bb6 {[%emt 0:00:01]
} 8. Na4 {[%emt 0:00:01]} O-O {[%emt 0:00:02]} 9. g3 {[%emt 0:00:34]} Bd7 {
[%emt 0:00:25]} 10. Nxb6 {[%emt 0:00:02]} axb6 {[%emt 0:00:02]} 11. Bb2 {
[%emt 0:00:19]} f6 {[%emt 0:00:22]} 12. exf6 {[%emt 0:00:33]} Rxf6 {[%emt 0:00:
03]} 13. Bg2 {[%emt 0:00:02]} Be8 {[%emt 0:00:27]} 14. Nf4 {[%emt 0:00:44]} Nf5
{[%emt 0:00:49]} 15. O-O {[%emt 0:00:13]} g5 {[%emt 0:00:02]} 16. Ne2 {[%emt 0:
01:21]} Bh5 {[%emt 0:00:03]} 17. Re1 {[%emt 0:00:23]} Nd6 {[%emt 0:01:34]} 18.
Bc1 {[%emt 0:02:02]} h6 {[%emt 0:00:18]} 19. Be3 {[%emt 0:00:54]} Nc4 {[%emt 0:
00:01]} 20. Qc1 {[%emt 0:00:19]} Qf8 {[%emt 0:06:11]} 21. Nc3 {[%emt 0:06:01]}
Ne7 {[%emt 0:00:11]} 22. f4 {[%emt 0:00:30]} Nxe3 {[%emt 0:00:18]} 23. Qxe3 {
[%emt 0:00:05]} gxf4 {[%emt 0:00:04]} 24. gxf4 {[%emt 0:00:10]} Bg4 {[%emt 0:
00:13]} 25. Rf1 {[%emt 0:00:21]} Ng6 {[%emt 0:00:26]} 26. h3 {[%emt 0:00:42]}
Bf5 {[%emt 0:00:04]} 27. Rf2 {[%emt 0:00:24]} Kh7 {[%emt 0:00:08]} 28. Kh2 {
[%emt 0:01:06]} c6 {[%emt 0:00:37]} 29. Nd1 {[%emt 0:00:37]} Qd6 {[%emt 0:00:
11]} 30. Qg3 {[%emt 0:00:24]} Rg8 {[%emt 0:00:02]} 31. Ne3 {[%emt 0:00:07]} Ne7
{[%emt 0:01:46]} 32. Qh4 {[%emt 0:00:25]} Rfg6 {[%emt 0:00:03]} 33. Bf3 {
[%emt 0:00:08]} R6g7 {[%emt 0:00:16]} 34. Bg4 {[%emt 0:00:15]} Rf8 {[%emt 0:00:
50]} 35. Raf1 {[%emt 0:00:05]} Be4 {[%emt 0:00:29]} 36. c3 {[%emt 0:00:13]} Ng6
{[%emt 0:00:59]} 37. Qg3 {[%emt 0:00:01]} h5 {[%emt 0:01:02]} 38. f5 {[%emt 0:
00:22]} Qxg3+ {[%emt 0:00:19]} 39. Kxg3 {[%emt 0:00:01]} exf5 {[%emt 0:00:30]}
40. Nxf5 {[%emt 0:00:17]} Rgf7 {[%emt 0:01:03]} 41. Bxh5 {[%emt 0:00:19]} Rxf5
{[%emt 0:00:06]} 42. Rxf5 {[%emt 0:00:05]} Rxf5 {[%emt 0:00:02]} 43. Rxf5 {
[%emt 0:00:01]} Bxf5 {[%emt 0:00:02]} 44. Be2 {[%emt 0:00:07]} Kg7 {[%emt 0:00:
11]} 45. a4 {[%emt 0:00:13]} Kf6 {[%emt 0:00:05]} 46. h4 {[%emt 0:00:14]} Bc2 {
[%emt 0:00:10]} 47. a5 {[%emt 0:00:04]} b5 {[%emt 0:00:02]} 48. Bg4 {[%emt 0:
00:08]} Bf5 {[%emt 0:00:01]} 49. Bh5 {[%emt 0:00:07]} Ne7 {[%emt 0:00:19]} 50.
Kf4 {[%emt 0:00:16]} Nc8 {[%emt 0:00:05]} 51. Bf3 {[%emt 0:00:25]} Nd6 {
[%emt 0:00:06]} 52. Bh5 {[%emt 0:00:05]} Ne4 {[%emt 0:00:04]} 53. Be8 {[%emt 0:
00:10]} Nxc3 {[%emt 0:00:34]} 54. h5 {[%emt 0:00:01]} Na2 {[%emt 0:00:23]} 55.
h6 {[%emt 0:00:20]} Nxb4 {[%emt 0:00:05]} 56. h7 {[%emt 0:00:05]} Bxh7 {
[%emt 0:00:03]} 57. Bd7 {[%emt 0:00:01]} Nd3+ {[%emt 0:00:33]} 58. Kg4 {
[%emt 0:00:04]} Nb2 {[%emt 0:00:05]} 0-1